fUSD/lending_fUSD_20251229
["ID","MTS","AMOUNT","RATE_DAILY","PERIOD"]
[399999290,1767003032272,-8358.6192992,0.00013402,2]
[399999291,1767003032286,-974.05877356,0.00013402,2]
[399999293,1767003032297,-17626.97712,0.00013402,2]
[399999294,1767003032308,-17575.09724553,0.00013402,2]
[399999295,1767003032320,-2430.83962756,0.00013402,2]
[399999296,1767003032337,-488.41,0.00013402,2]
[399999298,1767003032349,-7102.20718287,0.00013402,2]
[399999300,1767003032360,-529.74179822,0.00013402,2]
[399999303,1767003038034,-8800.00000001,0.00013402,2]
[399999304,1767003038148,-2672.0200554,0.00013402,2]
[399999305,1767003038252,-81001.05715598,0.00013402,2]
[399999306,1767003040179,-3889.325472,0.00013402,2]
[399999307,1767003040285,-906.48116792,0.00013402,2]
[399999308,1767003040297,-1564.67379628,0.00013402,2]
[399999309,1767003040308,-441.58640026,0.00013402,2]
[399999310,1767003040320,-4397.6,0.00013402,2]
[399999311,1767003040332,-408.76986013,0.00013402,2]
[399999312,1767003040345,-755438.38239693,0.00013402,2]
[399999326,1767003040857,-1.7e-07,0.00013402,2]
[399999351,1767003043805,-373.60264438,0.00013402,2]
[399999352,1767003044703,-76150.90262936,0.00013402,2]
[399999353,1767003044714,-500.0,0.00013404,2]
[399999354,1767003044725,-659.06720046,0.00013404,2]
[399999355,1767003044735,-6520.74364494,0.00013404,2]
[399999356,1767003044745,-3543.32113347,0.00013404,2]
[399999357,1767003044755,-457.25,0.00013502,2]
[399999358,1767003044765,-320.7006,0.00013504,2]
[399999359,1767003044782,-500.0,0.00013504,2]
[399999360,1767003044792,-10377.6644529,0.00013663,2]
[399999361,1767003044807,-1873.7539656,0.00013663,2]
[399999362,1767003044816,-166.66,0.00013677,2]
[399999363,1767003044826,-500.0,0.00013698,2]
[399999364,1767003044835,-500.0,0.00013698,2]
[399999365,1767003044844,-500.0,0.00013698,2]
[399999366,1767003044854,-473.27426277,0.00013698,2]
[399999367,1767003044864,-500.0,0.00013698,2]
[399999368,1767003044873,-162.79571783,0.00013698,2]
[399999369,1767003044883,-464.2399143,0.00013698,2]
[399999370,1767003044892,-1562.32,0.00013761,2]
[399999371,1767003044901,-457.25,0.00013776,2]
[399999372,1767003044911,-6520.74364487,0.00013792,2]
[399999373,1767003044921,-3543.32113345,0.00013792,2]
[399999374,1767003044932,-166.66,0.00013965,2]
[399999375,1767003044943,-500.0,0.00013989,2]
[399999376,1767003044953,-457.25,0.0001405,2]
[399999377,1767003044964,-10133.35152946,0.00014133,2]
[399999378,1767003044974,-1562.32,0.00014154,2]
[399999379,1767003044984,-6520.74364487,0.00014181,2]
[399999380,1767003044992,-3543.32113345,0.00014181,2]
[399999381,1767003045002,-166.66,0.00014253,2]
[399999382,1767003045012,-2541.4036012,0.00014272,2]
[399999383,1767003045022,-300.0,0.00014272,2]
[399999384,1767003045032,-300.0,0.00014272,2]
[399999385,1767003045043,-457.25,0.00014324,2]
[399999386,1767003045053,-1000.0,0.00014399,2]
[399999387,1767003045063,-255.0,0.00014514,2]
[399999388,1767003045072,-166.66,0.00014541,2]
[399999389,1767003045082,-200.0,0.00014544,2]
[399999390,1767003045091,-1562.32,0.00014548,2]
[399999391,1767003045101,-6520.74364487,0.00014569,2]
[399999392,1767003045110,-3543.32113345,0.00014569,2]
[399999393,1767003045120,-500.0,0.00014573,2]
[399999394,1767003045129,-501.46542866,0.00014573,2]
[399999395,1767003045138,-500.0,0.00014573,2]
[399999396,1767003045147,-457.25,0.00014598,2]
[399999397,1767003045157,-200.0,0.00014667,2]
[399999398,1767003045166,-300.0,0.00014691,2]
[399999399,1767003045176,-166.7,0.00014729,2]
[399999400,1767003045186,-216.66,0.00014743,2]
[399999401,1767003045196,-200.0,0.00014814,2]
[399999402,1767003045210,-166.66,0.00014829,2]
[399999403,1767003045219,-3518.0,0.00014923,2]
[399999404,1767003045229,-433.19,0.00014939,2]
[399999405,1767003045239,-150.0,0.00014941,2]
[399999406,1767003045251,-1562.32,0.00014941,2]
[399999407,1767003045260,-6520.74364487,0.00014958,2]
[399999408,1767003045271,-3543.32113345,0.00014958,2]
[399999409,1767003045284,-167.88,0.00014963,2]
[399999410,1767003045295,-151.0,0.00014991,2]
[399999411,1767003045305,-151.0,0.00014991,2]
[399999412,1767003045314,-151.0,0.00014997,2]
[399999413,1767003045323,-151.0,0.00014997,2]
[399999414,1767003045333,-2424.88,0.00014999,2]
[399999415,1767003045342,-342.03608376,0.00015102,2]
[399999416,1767003045351,-166.66,0.00015117,2]
[399999417,1767003045360,-972.53758265,0.00015121,2]
[399999418,1767003045370,-500.0,0.00015121,2]
[399999419,1767003045379,-4554.55,0.00015222,2]
[399999420,1767003045389,-999.0,0.00015235,3]
[399999421,1767003045398,-150.0,0.00015288,2]
[399999422,1767003045408,-150.0,0.00015288,2]
[399999423,1767003045417,-150.0,0.00015288,2]
[399999424,1767003045426,-150.19477692,0.00015288,2]
[399999425,1767003045435,-150.0,0.00015288,2]
[399999426,1767003045445,-150.0,0.00015288,2]
[399999427,1767003045454,-150.0,0.00015288,2]
[399999428,1767003045463,-150.0,0.00015288,2]
[399999429,1767003045472,-150.0,0.00015288,2]
[399999430,1767003045482,-150.0,0.00015288,2]
[399999431,1767003045492,-150.0,0.00015288,2]
[399999432,1767003045503,-150.40716207,0.00015288,2]
[399999433,1767003045512,-150.0,0.00015288,2]
[399999434,1767003045522,-150.0,0.00015288,2]
[399999435,1767003045531,-6520.74364487,0.00015346,2]
[399999436,1767003045540,-3543.32113345,0.00015346,2]
[399999437,1767003045552,-156.11,0.00015357,2]
[399999438,1767003045562,-2315.5699313,0.00015395,2]
[399999439,1767003045572,-151.0,0.000156,2]
[399999440,1767003045581,-151.0,0.000156,2]
[399999441,1767003045591,-150.0,0.00015627,2]
[399999442,1767003045602,-405.0,0.0001572,2]
[399999443,1767003045611,-6520.74364487,0.00015735,2]
[399999444,1767003045622,-3543.32113345,0.00015735,2]
[399999445,1767003045632,-516.6734896,0.00015781,2]
[399999446,1767003045642,-168.0,0.00015786,2]
[399999447,1767003045652,-167.88,0.00015794,2]
[399999449,1767003045663,-186.85634415,0.00015807,2]
[399999452,1767003045672,-500.0,0.00015817,2]
[399999454,1767003045681,-260.52700895,0.00015817,2]
[399999456,1767003045690,-150.0,0.00015854,2]
[399999458,1767003045699,-150.0,0.00015854,2]
[399999461,1767003045710,-166.66,0.00015965,2]
[399999464,1767003045720,-150.0,0.00015967,2]
[399999466,1767003045730,-500.0,0.00015973,2]
[399999468,1767003045739,-500.0,0.00016,2]
[399999470,1767003045748,-500.0,0.00016,5]
[399999472,1767003045758,-1000.0,0.000161,2]
[399999473,1767003045767,-1000.0,0.000161,2]
[399999474,1767003045776,-1000.0,0.000161,2]
[399999475,1767003045786,-1000.0,0.000161,2]
[399999476,1767003045796,-985.0,0.00016101,2]
[399999477,1767003045806,-6520.74364487,0.00016123,2]
[399999478,1767003045815,-3543.32113345,0.00016123,2]
[399999480,1767003045824,-150.0,0.00016137,2]
[399999481,1767003045833,-150.0,0.00016137,2]
[399999482,1767003045842,-985.0,0.00016153,2]
[399999483,1767003045852,-168.0,0.00016161,2]
[399999484,1767003045861,-985.0,0.00016176,2]
[399999485,1767003045871,-1000.0,0.00016199,2]
[399999486,1767003045880,-985.0,0.00016205,2]
[399999487,1767003045890,-985.0,0.00016277,2]
[399999488,1767003045899,-211.91,0.00016295,2]
[399999489,1767003045908,-150.0,0.00016307,2]
[399999490,1767003045919,-985.0,0.00016339,2]
[399999491,1767003045929,-168.0,0.00016363,2]
[399999492,1767003045940,-168.0,0.00016399,2]
[399999493,1767003045951,-168.0,0.00016417,2]
[399999494,1767003045961,-150.0,0.0001642,2]
[399999495,1767003045971,-150.0,0.0001642,2]
[399999496,1767003045980,-168.0,0.00016425,2]
[399999497,1767003045990,-5592.59,0.00016438,2]
[399999498,1767003045999,-13314.86,0.0001646,2]
[399999499,1767003046009,-168.0,0.0001649,2]
[399999500,1767003046018,-5815.3541428,0.00016496,2]
[399999501,1767003046028,-6520.74364487,0.00016512,2]
[399999502,1767003046038,-3543.32113345,0.00016512,2]
[399999503,1767003046047,-1000.0,0.00016521,2]
[399999504,1767003046057,-168.0,0.00016528,2]
[399999505,1767003046066,-168.0,0.0001653,2]
[399999506,1767003046078,-168.0,0.00016557,2]
[399999507,1767003046090,-166.66,0.00016623,2]
[399999508,1767003046100,-167.88,0.00016625,2]
[399999509,1767003046110,-150.0,0.00016647,2]
[399999510,1767003046119,-3521.90961869,0.0001666,2]
[399999511,1767003046129,-168.0,0.00016693,2]
[399999512,1767003046138,-150.0,0.00016699,2]
[399999513,1767003046148,-150.0,0.00016699,2]
[399999514,1767003046158,-150.0,0.00016699,2]
[399999515,1767003046167,-150.0,0.00016699,2]
[399999516,1767003046178,-150.0,0.00016699,2]
[399999517,1767003046188,-150.0,0.00016699,2]
[399999518,1767003046203,-150.0,0.00016699,2]
[399999519,1767003046218,-150.0,0.00016699,2]
[399999520,1767003046239,-150.0,0.00016699,2]
[399999521,1767003046255,-500.0,0.00016699,2]
[399999522,1767003046266,-150.0,0.00016699,2]
[399999523,1767003046278,-150.0,0.00016699,2]
[399999524,1767003046288,-150.0,0.00016699,2]
[399999525,1767003046298,-150.0,0.00016699,2]
[399999526,1767003046307,-150.0,0.00016699,2]
[399999527,1767003046318,-150.0,0.00016699,2]
[399999528,1767003046329,-168.0,0.00016708,2]
[399999529,1767003046341,-1000.0,0.00016714,2]
[399999530,1767003046351,-168.0,0.00016718,2]
[399999531,1767003046361,-168.0,0.00016722,2]
[399999532,1767003046372,-150.0,0.00016726,2]
[399999533,1767003046382,-150.0,0.00016726,2]
[399999534,1767003046391,-150.0,0.00016726,2]
[399999535,1767003046400,-150.0,0.00016726,2]
[399999536,1767003046409,-150.0,0.00016726,2]
[399999537,1767003046419,-150.0,0.00016726,2]
[399999538,1767003046428,-150.0,0.00016726,2]
[399999539,1767003046438,-150.0,0.00016726,2]
[399999540,1767003046448,-500.0,0.00016726,2]
[399999541,1767003046458,-150.0,0.00016726,2]
[399999542,1767003046468,-150.0,0.00016726,2]
[399999543,1767003046478,-150.0,0.00016726,2]
[399999544,1767003046488,-200.0,0.00016726,2]
[399999545,1767003046497,-1000.0,0.00016729,2]
[399999546,1767003046507,-200.0,0.00016754,2]
[399999547,1767003046516,-200.0,0.00016754,2]
[399999549,1767003046525,-200.0,0.00016754,2]
[399999551,1767003046535,-214.66836114,0.00016754,2]
[399999553,1767003046543,-200.0,0.00016754,2]
[399999555,1767003046553,-150.0,0.00016754,2]
[399999557,1767003046562,-200.0,0.00016754,2]
[399999559,1767003046573,-500.0,0.00016754,2]
[399999561,1767003046583,-150.0,0.00016754,2]
[399999563,1767003046592,-150.0,0.00016754,2]
[399999565,1767003046603,-200.0,0.00016754,2]
[399999567,1767003046612,-300.0,0.00016756,2]
[399999569,1767003046622,-168.0,0.00016763,2]
[399999572,1767003046631,-150.0,0.00016763,2]
[399999574,1767003046640,-150.0,0.00016769,2]
[399999576,1767003046650,-150.0,0.00016777,2]
[399999578,1767003046660,-150.0,0.00016781,2]
[399999580,1767003046670,-500.0,0.00016781,2]
[399999582,1767003046679,-150.0,0.00016781,2]
[399999584,1767003046688,-150.0,0.00016781,2]
[399999586,1767003046697,-150.0,0.0001679,2]
[399999588,1767003046706,-300.0,0.00016797,2]
[399999589,1767003046715,-150.0,0.00016797,2]
[399999590,1767003046725,-168.0,0.000168,2]
[399999591,1767003046734,-300.0,0.00016802,2]
[399999592,1767003046744,-433.19,0.00016806,2]
[399999593,1767003046753,-150.0,0.00016809,2]
[399999594,1767003046763,-500.0,0.00016809,2]
[399999595,1767003046772,-150.0,0.00016809,2]
[399999596,1767003046782,-296.21634986,0.00016809,2]
[399999597,1767003046791,-300.0,0.00016809,2]
[399999598,1767003046800,-300.0,0.00016813,2]
[399999599,1767003046810,-168.0,0.00016814,2]
[399999600,1767003046819,-1000.0,0.0001682,2]
[399999601,1767003046828,-250.0,0.00016836,2]
[399999602,1767003046838,-500.0,0.00016836,2]
[399999603,1767003046848,-154.0,0.00016836,2]
[399999604,1767003046857,-300.0,0.00016837,2]
[399999606,1767003046867,-168.0,0.00016839,2]
[399999608,1767003046877,-150.0,0.0001684,2]
[399999609,1767003046886,-168.0,0.00016849,2]
[399999610,1767003046895,-1000.0,0.00016849,2]
[399999611,1767003046904,-1000.0,0.00016853,2]
[399999612,1767003046914,-1000.0,0.00016857,2]
[399999613,1767003046923,-500.0,0.00016863,2]
[399999614,1767003046932,-254.13060141,0.00016868,2]
[399999615,1767003046941,-150.0,0.00016876,2]
[399999616,1767003046951,-500.0,0.00016891,2]
[399999617,1767003046960,-1074.41587204,0.000169,2]
[399999618,1767003046970,-10000.0,0.000169,2]
[399999619,1767003046979,-6520.74364487,0.000169,2]
[399999620,1767003046988,-3543.32113345,0.000169,2]
[399999621,1767003046997,-202.58100541,0.000169,2]
[399999622,1767003047007,-342.03608376,0.000169,2]
[399999623,1767003047016,-302.04580423,0.000169,2]
[399999624,1767003047025,-341.64217725,0.000169,2]
[399999625,1767003047034,-497.95354252,0.000169,2]
[399999626,1767003047043,-608.09460282,0.000169,2]
[399999627,1767003047052,-500.0,0.000169,2]
[399999628,1767003047061,-500.0,0.000169,2]
[399999629,1767003047070,-500.0,0.000169,2]
[399999630,1767003047081,-500.0,0.000169,2]
[399999631,1767003047091,-500.0,0.000169,2]
[399999632,1767003047100,-500.0,0.000169,2]
[399999633,1767003047110,-500.0,0.000169,2]
[399999634,1767003047119,-500.0,0.000169,2]
[399999635,1767003047128,-500.0,0.000169,2]
[399999636,1767003047138,-500.0,0.000169,2]
[399999637,1767003047147,-500.0,0.000169,2]
[399999638,1767003047156,-500.0,0.000169,2]
[399999639,1767003047165,-500.0,0.000169,2]
[399999640,1767003047174,-500.0,0.000169,2]
[399999641,1767003047183,-198.10586609,0.000169,2]
[399999642,1767003047192,-1000.0,0.00016908,2]
[399999643,1767003047206,-151.42793174,0.0001691,2]
[399999644,1767003047215,-500.0,0.00016918,2]
[399999645,1767003047225,-1137.39005859,0.00016921,2]
[399999646,1767003047234,-1000.0,0.00016923,2]
[399999647,1767003047243,-1000.0,0.00016929,2]
[399999648,1767003047252,-150.0,0.0001693,2]
[399999649,1767003047262,-587.89842056,0.00016946,2]
[399999650,1767003047271,-1000.0,0.00016949,2]
[399999651,1767003047282,-1000.0,0.00016952,2]
[399999652,1767003047475,-1000.0,0.00016953,2]
[399999653,1767003047485,-300.0,0.00016956,2]
[399999654,1767003047494,-1000.0,0.00016978,2]
[399999655,1767003047503,-1000.0,0.0001698,2]
[399999656,1767003047512,-300.0,0.00016981,2]
[399999657,1767003047521,-300.0,0.00016985,2]
[399999658,1767003047531,-150.0,0.00016986,2]
[399999659,1767003047540,-150.00000001,0.00016986,2]
[399999660,1767003047549,-150.0,0.00016986,2]
[399999661,1767003047558,-150.0,0.00016986,2]
[399999662,1767003047567,-150.0,0.00016986,2]
[399999663,1767003047576,-150.0,0.00016986,2]
[399999664,1767003047585,-150.0,0.00016988,2]
[399999665,1767003047594,-500.0,0.00016999,2]
[399999666,1767003047604,-500.0,0.00016999,2]
[399999667,1767003047614,-500.0,0.00016999,2]
[399999668,1767003047623,-539.18853574,0.00016999,2]
[399999669,1767003047632,-300.0,0.00016999,2]
[399999670,1767003047642,-300.0,0.00016999,2]
[399999671,1767003047651,-384736.46547583,0.00017,2]
[399999672,1767003047798,-3933.76640701,0.00017,2]
[399999673,1767003047810,-758.14934782,0.00017,2]
[399999674,1767003047821,-4280.37655949,0.00017,2]
[399999675,1767003047852,-278.68663792,0.00017,2]
[399999676,1767003047867,-5488.20076824,0.00017,2]
[399999677,1767003047878,-3078.19871091,0.00017,2]
[399999678,1767003047888,-3050.93885826,0.00017,2]
[399999679,1767003047899,-2617.51112008,0.00017,2]
[399999680,1767003047913,-16197.240802,0.00017,2]
[399999682,1767003098810,-573.63043294,0.00013134,2]
[399999687,1767003662900,-123.8219796,0.00013134,2]
[399999688,1767003662913,-82.3560408,0.00013134,2]
[399999689,1767003662924,-123.8219796,0.00013134,2]
[399999690,1767003680674,-126.1780204,0.00013134,2]
[399999691,1767003680695,-126.1780204,0.00013134,2]
[399999692,1767003680706,-117.6439592,0.00013134,2]
[399999693,1767003693411,-14.1780204,0.00013134,2]
[399999694,1767003693434,-14.1780204,0.00013236,2]
[399999695,1767003693454,-121.6439592,0.00013236,2]
[399999697,1767004002576,3183.4293973,0.0002,30]
[399999713,1767004232164,-565.50295328,0.00013202,2]
[399999715,1767004232175,-1847.61449223,0.00013202,2]
[399999717,1767004232184,-300.0,0.00013299,2]
[399999719,1767004232193,-300.0,0.00013299,2]
[399999720,1767004232202,-150.0,0.00013299,2]
[399999721,1767004232212,-1200.0,0.000133,2]
[399999722,1767004232221,-597.68223194,0.000133,2]
[399999723,1767004232231,-263.08252423,0.000133,2]
[399999724,1767004232240,-500.0,0.000133,2]
[399999725,1767004232250,-500.0,0.000133,2]
[399999726,1767004232260,-500.0,0.000133,2]
[399999727,1767004232270,-741.21475372,0.000133,2]
[399999728,1767004232280,-741.21475372,0.000133,2]
[399999729,1767004232289,-500.0,0.000133,2]
[399999730,1767004232299,-158.69026474,0.000133,2]
[399999731,1767004232308,-741.21475372,0.000133,2]
[399999732,1767004232317,-300.0,0.000133,2]
[399999733,1767004232327,-741.21475372,0.000133,2]
[399999734,1767004232336,-741.21475372,0.000133,2]
[399999735,1767004232346,-741.21475372,0.000133,2]
[399999736,1767004232355,-741.21475372,0.000133,2]
[399999737,1767004232364,-741.21475372,0.000133,2]
[399999738,1767004232373,-741.21475372,0.000133,2]
[399999739,1767004232382,-741.21475372,0.000133,2]
[399999740,1767004232391,-741.21475372,0.000133,2]
[399999741,1767004232400,-741.21475372,0.000133,2]
[399999742,1767004232410,-741.21475372,0.000133,2]
[399999743,1767004232419,-741.21475372,0.000133,2]
[399999744,1767004232428,-741.21475372,0.000133,2]
[399999745,1767004232437,-741.21475372,0.000133,2]
[399999746,1767004232447,-741.21475372,0.000133,2]
[399999747,1767004232457,-741.21475372,0.000133,2]
[399999748,1767004232466,-741.21475372,0.000133,2]
[399999749,1767004232476,-741.21475372,0.000133,2]
[399999750,1767004232485,-741.21475372,0.000133,2]
[399999751,1767004232494,-741.21475372,0.000133,2]
[399999752,1767004232506,-741.21475372,0.000133,2]
[399999753,1767004232515,-741.21475372,0.000133,2]
[399999755,1767004232525,-741.21475372,0.000133,2]
[399999757,1767004232537,-741.21475372,0.000133,2]
[399999759,1767004232546,-741.21475372,0.000133,2]
[399999760,1767004232555,-741.21475372,0.000133,2]
[399999762,1767004232564,-741.21475372,0.000133,2]
[399999763,1767004232574,-741.21475372,0.000133,2]
[399999765,1767004232583,-741.21475372,0.000133,2]
[399999766,1767004232594,-741.21475372,0.000133,2]
[399999767,1767004232605,-741.21475372,0.000133,2]
[399999768,1767004232615,-741.21475372,0.000133,2]
[399999769,1767004232624,-741.21475372,0.000133,2]
[399999770,1767004232633,-741.21475372,0.000133,2]
[399999771,1767004232642,-741.21475372,0.000133,2]
[399999772,1767004232651,-741.21475372,0.000133,2]
[399999773,1767004232660,-741.21475372,0.000133,2]
[399999774,1767004232670,-741.21475372,0.000133,2]
[399999775,1767004232679,-741.21475372,0.000133,2]
[399999776,1767004232689,-741.21475372,0.000133,2]
[399999777,1767004232698,-741.21475372,0.000133,2]
[399999778,1767004232709,-741.21475372,0.000133,2]
[399999779,1767004232718,-741.21475372,0.000133,2]
[399999780,1767004232727,-741.21475372,0.000133,2]
[399999781,1767004232737,-741.21475372,0.000133,2]
[399999782,1767004232746,-741.21475372,0.000133,2]
[399999783,1767004232755,-741.21475372,0.000133,2]
[399999784,1767004232765,-741.21475372,0.000133,2]
[399999785,1767004232774,-741.21475372,0.000133,2]
[399999786,1767004232784,-741.21475372,0.000133,2]
[399999787,1767004232793,-741.21475372,0.000133,2]
[399999788,1767004232802,-741.21475372,0.000133,2]
[399999789,1767004232811,-1168.69239143,0.000133,2]
[399999790,1767004232821,-1168.69239143,0.000133,2]
[399999791,1767004232831,-1168.69239143,0.000133,2]
[399999792,1767004232840,-1168.69239143,0.000133,2]
[399999793,1767004232850,-1168.69239143,0.000133,2]
[399999794,1767004232860,-1168.69239143,0.000133,2]
[399999795,1767004232869,-1168.69239143,0.000133,2]
[399999796,1767004232878,-1168.69239143,0.000133,2]
[399999797,1767004232888,-1168.69239143,0.000133,2]
[399999798,1767004232898,-1168.69239143,0.000133,2]
[399999799,1767004232908,-1168.69239143,0.000133,2]
[399999800,1767004232917,-1168.69239143,0.000133,2]
[399999801,1767004232927,-1168.69239143,0.000133,2]
[399999802,1767004232937,-1168.69239143,0.000133,2]
[399999803,1767004232947,-1168.69239143,0.000133,2]
[399999804,1767004232956,-1168.69239143,0.000133,2]
[399999805,1767004232966,-1168.69239143,0.000133,2]
[399999806,1767004232975,-1168.69239143,0.000133,2]
[399999807,1767004232984,-1168.69239143,0.000133,2]
[399999808,1767004232993,-1168.69239143,0.000133,2]
[399999809,1767004233002,-1168.69239143,0.000133,2]
[399999810,1767004233012,-1168.69239143,0.000133,2]
[399999811,1767004233021,-1168.69239143,0.000133,2]
[399999812,1767004233030,-1168.69239143,0.000133,2]
[399999813,1767004233039,-1168.69239143,0.000133,2]
[399999814,1767004233048,-1168.69239143,0.000133,2]
[399999815,1767004233057,-1168.69239143,0.000133,2]
[399999816,1767004233066,-1168.69239143,0.000133,2]
[399999817,1767004233075,-1168.69239143,0.000133,2]
[399999818,1767004233084,-1168.69239143,0.000133,2]
[399999819,1767004233093,-1168.69239143,0.000133,2]
[399999820,1767004233102,-1168.69239143,0.000133,2]
[399999821,1767004233113,-1168.6923916,0.000133,2]
[399999822,1767004233122,-449791.54953594,0.00013301,2]
[399999823,1767004233159,-40980.31637671,0.00013301,2]
[399999824,1767004233169,-27065.44308329,0.00013301,2]
[399999825,1767004233181,-942.30825638,0.00013301,2]
[399999826,1767004233192,-2643.18,0.00013301,2]
[399999827,1767004233202,-2064.94711756,0.00013301,2]
[399999828,1767004233213,-1848.46471605,0.00013301,2]
[399999829,1767004233224,-1300.0,0.00013301,2]
[399999830,1767004233234,-518.81918376,0.00013301,2]
[399999835,1767004238231,-17599.99999999,0.00013301,2]
[399999836,1767004238338,-57682.95017283,0.00013301,2]
[399999837,1767004238350,-328.31959918,0.00013301,2]
[399999872,1767004240339,-242028.7626935,0.00013301,2]
[399999873,1767004240393,-380.30947352,0.00013301,2]
[399999874,1767004240404,-12560.20347121,0.00013301,2]
[399999875,1767004240414,-2900.18651994,0.00013301,2]
[399999876,1767004240450,-1854.36,0.00013301,2]
[399999877,1767004240461,-440.15,0.00013301,2]
[399999878,1767004240472,-3208.21342751,0.00013301,2]
[399999879,1767004240483,-133861.51637263,0.00013301,2]
[399999880,1767004240492,-229.62700487,0.00013302,2]
[399999881,1767004240501,-815.0259,0.00013302,2]
[399999882,1767004240511,-564.91474326,0.00013304,2]
[399999883,1767004240520,-206.1780204,0.00013304,2]
[399999884,1767004240529,-500.0,0.00013394,2]
[399999885,1767004240771,-222.2,0.00013394,2]
[399999886,1767004240781,-1715.73812485,0.00013398,2]
[399999887,1767004240791,-1389.151,0.000134,2]
[399999888,1767004240800,-837.07,0.00013401,2]
[399999889,1767004240809,-1847.61449217,0.00013613,2]
[399999890,1767004240818,-837.07,0.00013675,2]
[399999891,1767004240827,-500.0,0.00013698,2]
[399999892,1767004240837,-500.0,0.00013698,2]
[399999893,1767004240846,-500.0,0.00013698,2]
[399999894,1767004240855,-500.0,0.00013698,2]
[399999895,1767004240865,-500.0,0.00013698,2]
[399999896,1767004240875,-334.57,0.00013699,2]
[399999897,1767004240884,-500.0,0.00013699,2]
[399999898,1767004240894,-292.7342488,0.00013699,2]
[399999899,1767004240903,-1715.73812476,0.00013787,2]
[399999900,1767004240913,-599.90625443,0.00013942,2]
[399999901,1767004240922,-837.07,0.00013949,2]
[399999902,1767004240931,-52183.05008325,0.00014007,2]
[399999903,1767004240940,-1847.61449217,0.00014024,2]
[399999904,1767004240950,-1715.73812476,0.00014176,2]
[399999905,1767004240959,-837.07,0.00014223,2]
[399999906,1767004240968,-255.0,0.00014417,2]
[399999907,1767004240977,-1847.61449217,0.00014435,2]
[399999908,1767004240986,-837.07,0.00014497,2]
[399999909,1767004240996,-1715.73812476,0.00014565,2]
[399999910,1767004241005,-500.0,0.00014573,2]
[399999911,1767004241015,-500.0,0.00014573,2]
[399999912,1767004241024,-172.80596156,0.00014573,2]
[399999913,1767004241034,-466.57897047,0.00014573,2]
[399999914,1767004241043,-500.0,0.00014573,2]
[399999915,1767004241052,-500.0,0.00014573,2]
[399999916,1767004241063,-500.0,0.00014573,2]
[399999917,1767004241072,-500.0,0.00014573,2]
[399999918,1767004241082,-501.47157547,0.00014573,2]
[399999919,1767004241091,-163.91470139,0.00014573,2]
[399999920,1767004241101,-505.52174355,0.00014573,2]
[399999921,1767004241111,-500.0,0.00014573,2]
[399999922,1767004241120,-160.20652096,0.00014573,2]
[399999923,1767004241130,-501.08830935,0.00014573,2]
[399999924,1767004241139,-500.0,0.00014573,2]
[399999925,1767004241148,-500.0,0.00014573,2]
[399999926,1767004241157,-500.0,0.00014573,2]
[399999927,1767004241167,-500.38383146,0.00014573,2]
[399999928,1767004241176,-503.89734133,0.00014573,2]
[399999929,1767004241186,-420.0,0.00014581,2]
[399999930,1767004241195,-656.0,0.00014582,2]
[399999931,1767004241204,-250.0,0.00014631,2]
[399999932,1767004241213,-195.0,0.00014631,2]
[399999933,1767004241223,-195.0,0.00014631,2]
[399999934,1767004241232,-837.07,0.00014771,2]
[399999935,1767004241241,-1847.61449217,0.00014846,2]
[399999936,1767004241251,-999.0,0.00014855,3]